bitfinex/quotes_ETHUSD_20250804
["timestamp","ask_amount","ask_price","bid_price","bid_amount"]
[1754273935764,39.2186026,3542.2,3542.1,0.002]
[1754273936103,42.04170688,3542.2,3542.1,0.002]
[1754273936599,39.2186026,3542.2,3542.1,0.002]
[1754273936800,42.04170688,3542.2,3542.1,0.002]
[1754273938110,39.2186026,3542.2,3542.1,0.002]
[1754273939583,34.8596026,3542.2,3542.1,0.002]
[1754273939789,4.3096026,3542.2,3542.1,0.002]
[1754273940091,4.4998,3542.2,3542.1,0.002]
[1754273940310,5.0498,3542.2,3542.1,0.002]
[1754273941087,0.6908,3542.2,3542.1,0.002]
[1754273941284,5.0498,3542.2,3542.1,0.002]
[1754273941911,8.0498,3542.2,3542.1,0.002]
[1754273943890,3.6908,3542.2,3542.1,0.002]
[1754273944130,4.358,3542.2,3542.1,0.002]
[1754273945202,4.8081,3542.2,3542.1,0.002]
[1754273945400,5.0488,3542.2,3542.1,0.002]
[1754273947942,4.358,3542.2,3542.1,0.002]
[1754273949837,5.3581,3542.2,3542.1,0.002]
[1754273950039,5.9549,3542.2,3542.1,0.002]
[1754273950562,5.4989,3542.2,3542.1,0.002]
[1754273951230,5.0488,3542.2,3542.1,0.002]
[1754273951432,4.358,3542.2,3542.1,0.002]
[1754273951746,4.358,3542.2,3542.1,0.1436]
[1754273951919,0.1408,3542.5,3542.1,0.1436]
[1754273952126,4.358,3542.4,3542.1,0.1436]
[1754273952628,8.01481551,3542.7,3542.1,2.96678001]
[1754273952828,4.358,3542.6,3542.2,0.1408]
[1754273955956,8.15561551,3542.7,3542.2,0.1408]
[1754273956156,8.15561551,3542.7,3542.5,0.1408]
[1754273956157,4.357,3542.6,3542.5,0.1408]
[1754273956929,7.09529155,3542.6,3542.5,0.1408]
[1754273957135,7.23609155,3542.6,3542.1,0.1428]
[1754273957329,0.9061,3542.5,3542.1,0.1428]
[1754273957551,4.357,3542.4,3542.1,0.1428]
[1754273958870,4.8071,3542.4,3542.1,0.1428]
[1754273959069,0.4501,3542.3,3542.1,0.1428]
[1754273959395,4.357,3542.2,3542.1,0.1428]
[1754273961301,4.357,3542.2,3542.1,2.96598398]
[1754273962504,4.357,3542.2,3542.1,0.1428]
[1754273963584,4.357,3542.2,3542.1,2.96598398]
[1754273964671,4.357,3542.2,3542.1,0.1428]
[1754273965196,4.357,3542.2,3542.1,2.96598398]
[1754273965396,4.357,3542.2,3542.1,0.1428]
[1754273965794,5.2631,3542.2,3542.1,0.002]
[1754273966034,6.48021,3542.2,3542.1,0.002]
[1754273966600,9.48021,3542.2,3542.1,0.002]
[1754273966796,4.57321,3542.2,3542.1,0.002]
[1754273967023,5.93021,3542.2,3542.1,0.002]
[1754273967331,5.4039,3542.2,3542.1,0.002]
[1754273967531,5.9539,3542.2,3542.1,0.002]
[1754273967829,8.9539,3542.2,3542.1,0.002]
[1754273971560,25.23336472,3542.2,3542.1,0.002]
[1754273974734,28.056469,3542.2,3542.1,0.002]
[1754273975168,60.92471607,3542.2,3542.1,0.002]
[1754273979355,36.37342311,3541.8,3541.7,0.002]
[1754273979554,57.15068783,3541.8,3541.7,0.002]
[1754273979868,62.37488783,3541.8,3541.7,0.002]
[1754273981564,62.37488783,3541.8,3541.0,0.67623517]
[1754273981565,0.55,3541.1,3541.0,0.67623517]
[1754273981874,0.55,3541.1,3540.3,0.002]
[1754273981875,0.55,3540.8,3540.3,0.002]
[1754273982085,0.6916,3540.4,3540.3,0.002]
[1754273982392,8.0486,3540.4,3540.3,0.002]
[1754273982575,11.80245896,3540.4,3540.3,0.002]
[1754273984415,14.62699856,3540.4,3540.3,0.002]
[1754273984714,11.80245896,3540.4,3540.3,0.002]
[1754273986618,10.85925896,3540.4,3540.3,0.002]
[1754273986925,11.80345896,3540.4,3540.3,0.002]
[1754273989548,11.35195896,3540.4,3540.3,0.002]
[1754273989842,11.80345896,3540.4,3540.3,0.002]
[1754273998915,11.35195896,3540.4,3540.3,0.002]
[1754273999339,7.42705896,3540.4,3540.3,0.002]
[1754273999534,11.78505896,3540.4,3540.3,0.002]
[1754273999843,11.35195896,3540.4,3540.3,0.002]
[1754274000050,6.50125896,3540.4,3540.3,0.002]
[1754274000229,4.4996,3540.4,3540.3,0.1436]
[1754274000424,5.0496,3540.4,3540.3,0.1436]
[1754274000841,4.4996,3540.4,3540.3,0.1436]
[1754274001419,4.358,3540.4,3540.3,0.1436]
[1754274003158,4.358,3540.4,3540.3,0.002]
[1754274008118,9.40716,3540.4,3540.3,0.002]
[1754274009055,42.2316996,3540.4,3540.3,0.002]
[1754274009447,39.40716,3540.4,3540.3,0.002]
[1754274015971,42.2316996,3540.4,3540.3,0.002]
[1754274016478,39.40716,3540.4,3540.3,0.002]
[1754274017636,35.04916,3540.4,3540.3,0.002]
[1754274017840,55.68462472,3540.4,3540.3,0.002]
[1754274019142,58.50916432,3540.4,3540.3,0.002]
[1754274019853,52.65432347,3540.0,3539.9,0.002]
[1754274020055,3.55,3539.5,3538.3,0.1416]
[1754274020382,0.1416,3538.7,3538.3,0.1416]
[1754274020538,4.356,3538.6,3538.2,0.1416]
[1754274020744,4.356,3538.6,3538.4,0.1416]
[1754274020944,4.356,3538.6,3538.5,0.1416]
[1754274021262,4.356,3538.6,3538.5,0.2832]
[1754274021475,0.4745,3539.7,3538.5,0.2832]
[1754274021476,3.39595952,3542.0,3538.5,16.42106472]
[1754274021679,0.60334695,3544.1,3538.7,2.84373233]
[1754274021680,0.4745,3542.7,3538.7,2.84373233]
[1754274021874,30.0,3542.2,3540.1,2.82470583]
[1754274022072,30.0,3542.2,3538.8,2.82581666]
[1754274022073,10.07699963,3542.1,3539.6,16.27946472]
[1754274022280,10.07699963,3542.1,3539.1,2.82557712]
[1754274022281,16.27946472,3541.9,3539.1,16.27946472]
[1754274022461,0.1416,3540.9,3540.4,0.1416]
[1754274022651,40.0,3541.7,3540.0,0.21466354]
[1754274022652,0.4745,3541.7,3540.0,0.21466354]
[1754274022848,0.4745,3541.7,3540.6,0.1416]
[1754274022849,0.1408,3541.1,3540.6,0.1416]
[1754274023091,4.855,3541.0,3540.6,0.1416]
[1754274024759,0.1408,3541.1,3540.6,0.1416]
[1754274024990,6.791,3542.6,3540.7,2.8242848]
[1754274024991,0.4745,3542.3,3540.7,2.8242848]
[1754274025163,0.1408,3541.9,3541.0,0.1416]
[1754274025488,4.863,3541.8,3541.0,0.1416]
[1754274025852,4.863,3541.8,3541.4,0.1408]
[1754274026259,0.1408,3541.9,3541.4,0.1408]
[1754274026455,0.1408,3541.9,3540.7,2.82427111]
[1754274026456,4.872,3541.8,3541.5,2.823647]
[1754274026689,0.1408,3542.1,3541.6,2.96438216]
[1754274026897,4.872,3542.0,3541.6,2.96438216]
[1754274027191,0.1408,3542.4,3541.8,0.1408]
[1754274027410,4.871,3542.3,3541.8,0.1408]
[1754274027559,5.7786,3542.3,3541.8,0.1408]
[1754274027765,0.1408,3542.2,3541.7,0.1408]
[1754274028162,0.6153,3542.2,3541.7,0.1408]
[1754274028490,6.791,3542.6,3541.7,0.1408]
[1754274028491,4.874,3542.1,3541.7,0.1408]
[1754274029063,4.874,3542.1,3541.9,2.82334306]
[1754274029285,4.877,3542.0,3541.0,2.82406099]
[1754274029491,4.877,3542.0,3541.9,2.9641434]
[1754274029662,4.878,3542.0,3541.9,2.9641434]
[1754274030472,0.1408,3542.8,3541.9,0.1408]
[1754274030779,0.1408,3542.8,3541.4,2.82366942]
[1754274030780,0.219,3542.7,3542.5,2.8228047]
[1754274030988,0.219,3542.6,3541.8,2.82337789]
[1754274031165,0.219,3542.6,3540.7,2.82430027]
[1754274031496,0.4611,3542.5,3541.7,2.82348979]
[1754274031694,0.4611,3542.5,3541.1,2.82398124]
[1754274031898,0.4611,3542.5,3541.8,2.82336513]
[1754274032111,10.0,3543.5,3540.7,3.0]
[1754274032112,0.4611,3543.0,3540.8,0.55]
[1754274032410,0.4611,3543.0,3541.2,20.36592428]
[1754274032411,3.0,3542.8,3541.2,20.36592428]
[1754274032701,0.4611,3542.7,3541.9,2.82334182]
[1754274033913,0.4611,3542.7,3541.7,2.82350244]
[1754274034208,0.4611,3542.7,3541.2,2.82384661]
[1754274034209,0.4611,3542.7,3542.0,0.848615]
[1754274036734,2.82255761,3544.2,3541.5,2.82365778]
[1754274036735,1.04331025,3545.3,3542.5,20.36592428]
[1754274036930,1.698,3545.2,3543.5,20.36592428]
[1754274037143,0.001,3545.4,3543.7,0.55]
[1754274037288,0.001,3545.4,3543.9,3.55]
[1754274037493,0.001,3545.4,3543.5,20.36592428]
[1754274037692,5.4351,3545.3,3544.6,3.0]
[1754274037946,5.4351,3545.3,3543.6,3.0]
[1754274037947,0.8935,3545.2,3543.6,3.0]
[1754274038102,5.4541,3545.1,3543.6,3.0]
[1754274038292,5.4541,3545.1,3544.2,2.82150263]
[1754274038492,4.993,3545.0,3544.5,2.82119752]
[1754274038814,4.993,3544.9,3543.7,3.0]
[1754274039123,4.993,3544.9,3543.6,3.20778554]
[1754274039304,5.0,3544.8,3544.4,2.82133077]
[1754274039503,6.785,3544.7,3544.4,2.82133077]
[1754274040287,6.785,3544.7,3544.1,2.82154329]
[1754274040525,6.785,3544.7,3544.4,2.82134675]
[1754274040724,6.785,3544.7,3544.5,0.848115]
[1754274041226,4.991,3544.6,3544.5,3.66938497]
[1754274041923,4.992,3544.6,3544.5,3.66938497]
[1754274042233,4.992,3544.6,3544.5,0.848115]
[1754274042526,4.993,3544.6,3544.5,3.66938739]
[1754274042708,6.785,3544.7,3544.5,0.848115]
[1754274042920,4.995,3544.6,3544.5,0.848115]
[1754274043837,4.995,3544.6,3544.3,0.1408]
[1754274043838,5.8885,3544.6,3544.3,0.1408]
[1754274044062,0.1408,3544.4,3543.6,0.20778554]
[1754274044287,0.1408,3544.0,3543.0,2.82245698]
[1754274044531,0.1408,3543.5,3543.1,0.848427]
[1754274044692,5.9085,3543.4,3543.1,0.848427]
[1754274044899,0.8935,3543.3,3542.9,0.1408]
[1754274045100,0.8935,3543.3,3542.9,0.989234]
[1754274045712,5.015,3543.4,3542.9,0.1408]
[1754274045713,0.4611,3543.2,3542.9,0.1408]
[1754274045915,1.0343,3543.2,3542.7,0.1408]
[1754274046115,6.783,3543.1,3542.7,0.98928]
[1754274046511,5.026,3543.0,3542.7,0.98928]
[1754274046834,5.026,3543.0,3542.8,2.82262617]
[1754274047438,5.026,3543.0,3542.9,2.8225465]
[1754274048336,6.783,3543.1,3542.7,2.96349858]
[1754274048337,6.783,3543.1,3543.0,2.82246683]
[1754274048830,11.806,3543.1,3543.0,2.82246683]
[1754274049017,6.783,3543.1,3543.0,2.82246683]
[1754274049226,11.807,3543.1,3543.0,2.82246683]
[1754274050316,11.807,3543.1,3542.9,2.96333715]
[1754274050614,6.783,3543.1,3543.0,2.82246683]
[1754274050817,11.807,3543.1,3543.0,2.82246683]
[1754274051950,11.811,3543.1,3543.0,2.82246683]
[1754274053260,11.804,3543.1,3543.0,3.67082383]
[1754274053431,11.798,3543.1,3543.0,3.82992383]
[1754274055460,6.783,3543.1,3543.0,3.82992383]
[1754274055752,11.791,3543.1,3543.0,3.67082383]
[1754274060564,12.7316,3543.1,3542.9,0.1408]
[1754274060755,11.791,3543.1,3543.0,2.82246683]
[1754274060967,11.791,3543.1,3542.9,0.1408]
[1754274061353,11.791,3543.1,3542.5,0.002]
[1754274061354,0.9406,3543.0,3542.5,0.002]
[1754274061660,0.9406,3543.0,3542.5,0.1428]
[1754274061661,4.994,3542.9,3542.5,0.1428]
[1754274061964,0.9406,3542.8,3542.5,0.1428]
[1754274062167,4.998,3542.7,3542.5,0.1428]
[1754274062371,6.0794,3542.7,3542.5,0.002]
[1754274062673,0.9406,3542.6,3542.1,0.1408]
[1754274062831,0.1408,3542.2,3541.5,2.8235988]
[1754274063028,5.9386,3542.1,3541.7,2.82350283]
[1754274063227,4.998,3542.1,3541.7,2.82350283]
[1754274063466,0.9406,3542.0,3541.7,2.82350283]
[1754274063664,4.999,3541.9,3541.7,2.82350283]
[1754274063876,0.4436,3541.9,3541.8,2.82342311]
[1754274064028,5.4426,3541.9,3541.7,2.8234783]
[1754274064530,0.55,3543.2,3541.0,6.6727375]
[1754274064531,0.9406,3542.6,3541.1,3.0]
[1754274064765,4.999,3542.5,3542.2,2.82307704]
[1754274065031,4.999,3542.5,3542.3,0.1408]
[1754274065232,4.999,3542.5,3542.3,2.96381907]
[1754274065490,7.7236,3542.6,3542.3,2.96381907]
[1754274065652,4.996,3542.5,3542.3,2.96381907]
[1754274066383,4.996,3542.5,3542.3,0.1408]
[1754274066680,4.996,3542.4,3542.3,2.96380283]
[1754274066902,4.996,3542.4,3542.3,0.1408]
[1754274067687,0.497,3542.5,3542.3,2.9638086]
[1754274067901,4.994,3542.4,3542.3,2.9638086]
[1754274068384,4.994,3542.4,3542.3,0.1408]
[1754274068596,1.43,3542.5,3542.4,2.82294489]
[1754274068746,1.43,3543.1,3543.0,2.82246683]
[1754274068952,4.987,3543.1,3542.9,2.82251566]
[1754274069167,4.987,3543.1,3543.0,2.96326683]
[1754274069946,8.214,3543.3,3543.2,2.82230751]
[1754274070440,13.202,3543.3,3543.2,2.82230751]
[1754274070670,13.202,3543.3,3543.2,2.96310751]
[1754274071603,1.43,3543.3,3543.2,2.96310751]
[1754274071921,6.413,3543.3,3543.2,2.96310751]
[1754274072246,1.43,3543.3,3543.2,2.96310751]
[1754274072397,6.413,3543.3,3543.2,2.96310751]
[1754274072713,6.41,3543.3,3543.2,2.96310751]
[1754274074708,6.406,3543.3,3543.2,2.96310751]
[1754274074913,6.402,3543.3,3543.2,2.96310751]
[1754274076016,1.43,3543.3,3543.2,2.96310751]
[1754274076309,6.402,3543.3,3543.2,2.96310751]
[1754274076512,6.395,3543.3,3543.2,2.96310751]
[1754274077016,7.3356,3543.3,3543.2,3.1408]
[1754274077510,7.3356,3543.3,3542.7,3.0]
[1754274077810,0.9406,3543.2,3542.5,0.848365]
[1754274078152,5.9046,3543.1,3542.7,2.82263978]
[1754274078418,4.964,3543.1,3542.6,2.82275581]
[1754274078582,0.9406,3543.0,3542.8,3.0]
[1754274078922,0.9406,3543.0,3542.7,3.0]
[1754274078923,5.9046,3542.9,3542.7,3.0]
[1754274079097,4.964,3542.9,3542.7,3.0]
[1754274079305,0.9406,3542.8,3542.6,3.0]
[1754274079610,4.964,3542.7,3542.6,3.0]
[1754274079801,5.461,3542.7,3542.6,3.0]
[1754274079998,4.964,3542.7,3542.6,5.82278552]
[1754274080786,4.964,3542.7,3542.6,3.0]
[1754274081139,5.9046,3542.7,3542.6,3.0]
[1754274081288,0.497,3542.7,3542.5,2.82284716]
[1754274081628,4.96,3542.7,3542.6,2.82278552]
[1754274081829,5.9006,3542.7,3542.5,2.82284763]
[1754274082045,5.9006,3542.7,3542.6,2.82278552]
[1754274082215,5.9006,3542.7,3542.5,2.82283464]
[1754274082416,5.9006,3542.7,3542.6,2.82278552]
[1754274082603,5.9006,3542.7,3542.5,2.82284807]
[1754274082800,5.9006,3542.7,3542.3,3.04018174]
[1754274082801,0.9406,3542.6,3542.3,3.04016763]
[1754274083037,5.8996,3542.5,3542.3,0.21716801]
[1754274083408,0.9406,3542.4,3542.3,0.002]
[1754274087498,5.8766,3542.4,3542.3,0.002]
[1754274088426,7.3066,3542.4,3542.3,0.002]
[1754274089641,2.3706,3542.4,3542.3,0.002]
[1754274090055,7.2986,3542.4,3542.3,0.002]
[1754274090427,2.3706,3542.4,3542.3,0.002]
[1754274090633,7.2936,3542.4,3542.3,0.002]
[1754274092369,2.3706,3542.4,3542.3,0.002]
[1754274092546,1.43,3542.4,3542.3,2.82502458]
[1754274092861,6.344,3542.4,3542.3,2.98412458]
[1754274093066,6.344,3542.4,3542.3,3.12492458]
[1754274093299,6.344,3542.4,3542.3,3.97332558]
[1754274093673,6.349,3542.4,3542.3,3.97332558]
[1754274094899,6.349,3542.4,3542.3,3.81422558]
[1754274096495,1.43,3542.4,3542.3,3.81422558]
[1754274096696,6.337,3542.4,3542.3,3.81422558]
[1754274096892,1.43,3542.4,3542.3,3.81422558]
[1754274097196,6.337,3542.4,3542.3,3.81422558]
[1754274100628,6.327,3542.4,3542.3,3.81422558]
[1754274100835,6.327,3542.4,3542.3,6.81422558]
[1754274102322,1.43,3542.4,3542.3,6.97332558]
[1754274102532,6.319,3542.4,3542.3,6.97332558]
[1754274102919,1.43,3542.4,3542.3,6.97332558]
[1754274103119,6.319,3542.4,3542.3,6.97332558]
[1754274103640,0.001,3543.3,3543.2,2.82230751]
[1754274103943,0.001,3545.5,3543.2,23.36592428]
[1754274104144,0.60334695,3547.5,3542.3,0.850401]
[1754274104147,10.0,3548.0,3544.3,0.55]
[1754274104303,10.0,3548.0,3544.4,1.20531617]
[1754274104304,0.4496,3545.4,3544.4,1.20531617]
[1754274104510,0.4496,3545.4,3544.0,20.36592428]
[1754274104511,4.949,3545.3,3544.1,0.55]
[1754274104701,0.4496,3545.2,3544.1,0.55]
[1754274104906,0.4496,3545.2,3543.6,2.82193804]
[1754274105130,0.4496,3545.2,3543.7,3.37190672]
[1754274105328,4.954,3545.1,3543.7,3.37190672]
[1754274105506,4.954,3545.1,3543.7,3.57899229]
[1754274105701,0.4496,3545.0,3543.7,3.57899229]
[1754274106149,4.95,3544.9,3543.7,3.57899229]
[1754274106330,4.95,3544.9,3543.7,0.75708557]
[1754274106536,0.4496,3544.8,3543.7,0.20708557]
[1754274106842,0.4496,3544.8,3543.4,20.36592428]
[1754274107406,0.4884,3544.7,3543.4,20.36592428]
[1754274107606,0.4496,3544.6,3543.4,20.36592428]
[1754274108022,0.4496,3544.6,3543.4,20.57470571]
[1754274108248,0.4496,3544.6,3543.4,0.20878143]
[1754274108449,0.4496,3544.6,3542.8,20.36592428]
[1754274108637,0.4496,3544.6,3542.9,0.55]
[1754274109389,0.4496,3544.6,3542.1,0.002]
[1754274109390,0.4496,3544.6,3542.2,20.36592428]
[1754274109536,2.82144941,3544.3,3542.9,0.2126358]
[1754274109736,12.1876,3544.2,3542.2,23.18895773]
[1754274109956,11.738,3544.2,3542.3,3.67341794]
[1754274110269,0.4496,3544.1,3542.3,3.67341794]
[1754274110463,0.4496,3544.1,3542.4,0.55]
[1754274110832,0.4496,3544.1,3542.4,3.37292786]
[1754274111371,0.4496,3544.1,3542.4,0.55]
[1754274112237,0.4884,3544.0,3542.3,0.850401]
[1754274112439,0.4496,3543.9,3542.3,0.850401]
[1754274113152,0.4496,3543.9,3542.3,3.88926659]
[1754274113381,0.4496,3543.9,3542.5,2.82284342]
[1754274113382,4.957,3543.8,3542.5,2.82284342]
[1754274113534,0.4496,3543.7,3542.4,3.67129331]
[1754274113885,0.4496,3543.7,3542.4,2.82292331]
[1754274114034,0.4496,3543.7,3542.5,3.0]
[1754274114237,4.955,3543.6,3543.2,0.1408]
[1754274114678,0.4496,3543.5,3543.2,0.1408]
[1754274114862,4.955,3543.6,3543.2,0.1408]
[1754274115041,0.4496,3543.5,3543.2,0.1408]
[1754274115242,0.4496,3543.4,3543.2,0.1408]
[1754274115652,4.953,3543.3,3543.2,0.1408]
[1754274116094,5.4016,3543.3,3543.2,0.1408]
[1754274117966,0.1408,3543.7,3543.2,0.1408]
[1754274117967,0.5904,3543.7,3543.2,0.1408]
[1754274118294,4.946,3543.6,3543.2,0.1408]
[1754274118484,4.946,3543.6,3543.4,0.1408]
[1754274119067,5.407,3543.6,3543.4,0.1408]
[1754274120588,4.941,3543.5,3543.4,0.1408]
[1754274120801,4.94,3543.5,3543.4,0.1408]
[1754274121226,5.401,3543.5,3543.4,0.1408]
[1754274122717,5.4,3543.5,3543.4,0.1408]
[1754274123309,5.4,3543.5,3542.9,0.848362]
[1754274123483,5.4,3543.5,3543.2,0.1408]
[1754274123686,0.461,3543.4,3543.2,0.1408]
[1754274123886,4.934,3543.3,3543.2,0.1408]
[1754274124215,0.461,3543.4,3543.2,0.1408]
[1754274124412,4.937,3543.3,3543.2,0.1408]
[1754274124727,4.941,3543.3,3543.2,0.1408]
[1754274128534,4.941,3543.3,3543.2,0.989028]
[1754274129703,5.402,3543.3,3543.2,0.1408]
[1754274130893,5.402,3543.3,3542.4,0.848333]
[1754274130894,5.8855,3543.3,3542.4,0.848333]
[1754274131093,5.4245,3543.3,3543.0,0.1408]
[1754274131392,0.9445,3543.2,3543.0,0.1408]
[1754274131726,0.9445,3543.2,3542.7,0.1408]
[1754274131727,1.0853,3543.2,3542.7,0.1408]
[1754274131887,0.9445,3543.1,3542.3,0.002]
[1754274132088,0.1408,3543.0,3542.5,0.1408]
[1754274132292,5.8785,3542.9,3542.5,0.1408]
[1754274132535,4.934,3542.9,3542.5,0.1408]
[1754274132718,0.9445,3542.8,3542.5,0.1408]
[1754274133103,1.0853,3542.7,3542.3,0.002]
[1754274133610,0.9445,3542.6,3542.3,0.002]
[1754274133824,4.931,3542.5,3542.3,0.002]
[1754274134040,5.392,3542.5,3542.3,0.002]
[1754274134244,0.461,3542.4,3542.3,0.002]
[1754274134733,5.391,3542.4,3542.3,0.002]
[1754274135520,4.926,3542.4,3542.3,0.002]
[1754274135836,6.783,3542.7,3542.3,0.002]
[1754274136033,4.926,3542.4,3542.3,0.002]
[1754274136395,4.926,3542.4,3542.3,0.1428]
[1754274137532,7.244,3542.7,3542.3,0.1428]
[1754274137706,4.928,3542.6,3542.3,0.1428]
[1754274137913,0.461,3542.6,3542.3,0.1428]
[1754274138131,4.925,3542.5,3542.3,0.002]
[1754274138494,4.925,3542.5,3542.4,0.1408]
[1754274141325,0.461,3542.6,3542.4,0.1408]
[1754274141538,4.918,3542.5,3542.4,0.1408]
[1754274141734,4.912,3542.5,3542.4,0.1408]
[1754274142739,0.461,3542.6,3542.4,0.1408]
[1754274142937,6.783,3542.7,3542.4,2.96370626]
[1754274143122,4.906,3542.5,3542.4,2.96370626]
[1754274143437,4.906,3542.5,3542.4,2.82290626]
[1754274143607,4.906,3542.5,3542.4,2.96370626]
[1754274143802,6.783,3542.7,3542.4,0.1408]
[1754274144109,4.906,3542.6,3542.5,2.8228652]
[1754274144336,4.906,3542.6,3542.5,2.9636652]
[1754274144548,6.783,3542.7,3542.5,2.9636652]
[1754274144837,0.4835,3543.4,3542.6,0.02822785]
[1754274144838,0.461,3543.4,3542.6,0.02822785]
[1754274145137,4.902,3543.3,3543.2,2.82230751]
[1754274145532,4.902,3543.3,3543.2,2.96310751]
[1754274147323,4.902,3543.3,3543.2,0.1408]
[1754274147544,5.363,3543.3,3543.2,0.1408]
[1754274147713,5.8465,3543.3,3543.2,0.1408]
[1754274148325,5.8465,3543.3,3542.7,3.0]
[1754274148528,0.461,3543.2,3543.1,0.1408]
[1754274149939,0.461,3543.2,3543.1,2.96318717]
[1754274150133,0.4363,3543.6,3543.1,2.96318717]
[1754274150326,4.896,3543.5,3543.2,2.82227716]
[1754274150525,5.3323,3543.5,3543.2,2.82227716]
[1754274150725,5.3323,3543.5,3543.4,0.1408]
[1754274150938,0.4363,3543.5,3543.4,0.1408]
[1754274151137,4.898,3543.5,3543.4,0.1408]
[1754274152117,5.3313,3543.5,3543.4,0.1408]
[1754274153515,5.3273,3543.5,3543.4,2.96294821]
[1754274153737,4.891,3543.5,3543.4,2.96294821]
[1754274154732,4.891,3543.5,3543.4,0.1408]
[1754274155046,6.784,3543.7,3543.4,2.96294794]
[1754274155356,4.888,3543.5,3543.4,2.82214794]
[1754274155719,6.784,3543.7,3543.6,2.82198893]
[1754274156021,6.784,3543.7,3543.4,2.96294794]
[1754274156022,12.1003,3543.7,3543.4,2.96293572]
[1754274156233,12.1003,3543.7,3543.6,0.1408]
[1754274156634,12.1003,3543.7,3543.6,2.96278893]
[1754274157033,12.1003,3543.7,3543.6,0.1408]
[1754274158361,7.2203,3543.7,3543.6,0.1408]
[1754274158818,12.0923,3543.7,3543.6,0.1408]
[1754274160237,12.5561,3543.7,3543.6,0.1408]
[1754274160957,7.6841,3543.7,3542.4,19.26662333]
[1754274161125,4.868,3543.6,3542.6,0.55]
[1754274161325,4.868,3543.6,3543.3,2.82215975]
[1754274161858,0.4363,3543.5,3543.3,2.82215975]
[1754274162020,4.873,3543.4,3543.3,2.82215975]
[1754274163552,0.4363,3543.5,3543.4,2.82214821]
[1754274163851,5.3013,3543.5,3543.2,2.82227593]
[1754274164042,4.865,3543.5,3543.2,2.82227593]
[1754274164244,0.4363,3543.4,3543.2,2.82227593]
[1754274164445,4.865,3543.3,3543.2,2.82227593]
[1754274164653,5.3013,3543.3,3543.2,2.82227593]
[1754274166374,0.4363,3543.3,3543.2,2.82227593]
[1754274166570,5.2933,3543.3,3543.2,2.82227593]
[1754274166878,4.857,3543.3,3543.2,2.82227593]
[1754274168404,0.4363,3543.6,3543.2,2.82227593]
[1754274168581,5.2873,3543.5,3543.2,2.82227593]
[1754274168742,0.4363,3543.4,3543.2,2.82227593]
[1754274168944,0.4363,3543.4,3543.3,2.82222786]
[1754274169174,5.2893,3543.4,3543.3,2.82222786]
[1754274169391,0.4363,3543.4,3543.3,2.82222786]
[1754274169576,5.2893,3543.4,3543.3,2.82222786]
[1754274170273,5.2893,3543.4,3542.8,2.82262617]
[1754274170274,4.852,3543.4,3542.8,2.82262617]
[1754274170475,4.852,3543.4,3543.3,2.82222786]
[1754274170944,4.852,3543.4,3543.3,2.96302786]
[1754274171141,0.4363,3543.7,3543.4,2.82214704]
[1754274171356,4.848,3543.6,3543.3,2.96299625]
[1754274171778,0.4363,3543.5,3543.3,2.96299625]
[1754274171946,4.844,3543.4,3543.3,2.96299625]
[1754274172156,4.844,3543.4,3543.3,2.82219625]
[1754274172353,4.844,3543.4,3543.3,2.96299625]
[1754274173785,0.4363,3543.5,3543.3,2.96299625]
[1754274173991,0.4363,3543.5,3543.4,2.82214821]
[1754274174157,5.2743,3543.5,3543.4,2.82214821]
[1754274174362,0.4363,3543.5,3543.4,2.82214821]
[1754274174580,0.4363,3544.0,3543.7,2.82190204]
[1754274174758,0.4363,3544.0,3543.9,2.96255004]
[1754274174955,5.2713,3544.0,3543.9,2.96255004]
[1754274175691,0.4363,3544.6,3543.9,0.1408]
[1754274175996,4.835,3544.5,3544.1,2.82154028]
[1754274176493,0.4363,3544.4,3544.1,2.82154028]
[1754274176696,0.4638,3544.7,3544.4,0.1408]
[1754274176871,4.829,3544.6,3544.1,3.21209718]
[1754274177065,7.2458,3545.2,3544.6,0.1408]
[1754274177260,7.2458,3545.2,3544.5,2.82125332]
[1754274177261,0.4363,3545.1,3544.5,2.96205332]
[1754274177569,4.83,3545.0,3544.9,2.82093963]
[1754274177779,5.2663,3545.0,3544.9,2.82093963]
[1754274177982,0.4363,3545.0,3544.8,2.82100881]
[1754274178161,5.2633,3544.9,3544.1,3.21114341]
[1754274178361,5.2633,3544.9,3544.8,0.1408]
[1754274179395,0.4363,3544.9,3544.8,2.96183362]
[1754274179598,7.2458,3545.2,3544.8,2.96183362]
[1754274179599,6.782,3545.2,3545.1,2.8207949]
[1754274179808,11.607,3545.2,3545.1,2.8207949]
[1754274180101,11.607,3545.2,3545.1,2.9615949]
[1754274180595,6.782,3545.2,3545.1,2.9615949]
[1754274180797,0.4656,3545.6,3545.5,2.82047666]
[1754274180964,5.2916,3545.6,3545.5,2.82047666]
[1754274181163,5.2916,3545.6,3545.5,2.96127666]
[1754274181364,0.001,3545.7,3545.5,2.96127666]
[1754274181688,0.4666,3545.7,3545.6,2.82039711]
[1754274181860,5.2916,3545.7,3545.6,2.82039711]
[1754274182270,0.4666,3545.7,3545.5,0.1408]
[1754274182589,0.001,3545.7,3545.6,2.82039711]
[1754274182902,4.829,3545.7,3545.6,2.82039711]
[1754274183089,5.2946,3545.7,3545.6,2.82039711]